Workbook

Sheet Sheet1
A1: INSTRUCTIONS: Use this form when a single information collection document involves multiple reporting and recordkeeping requirements. The totals of the figures in cols. should be entered in item 13 of OMB-83-I: cols. (D) &/or (I) = 13a (respondent is only counted once); cols. F & I = 13b; cols. H & K = 13c. (F)Total/(D)Total = (E)Average (H)Total/(F)Total = (G)Average (K)Total/(I)Total = (J)Average NOTE: The columns will calculate automatically. If Col. E's response is something other than annually, i.e., 1/6 years, list as "1/6" & decimal will display. | I1: TITLE OF INFORMATION COLLECTION DOCUMENT | O1: OMB NO. | P1: 0560-0236
I3: Direct Loan Servicing - Regular
O4: DATE PREPARED
O5: 2026-03-03
A10: IDENTIFICATION OF REPORTING OR RECORDKEEPING REQUIREMENT | H10: ANNUAL BURDEN
H12: REPORTS | N12: RECORDS | Q12: RESPONDENT COST | S12: Revised Annual Burden hours
L14: TOTAL BURDEN HOURS | P14: TOTAL | S14: Previously Approved Burden Hours | T14: Difference Due to Adjustments | U14: Differences Due to Program Changes
G15: FORMS NO (S) | H15: NO. OF | I15: NO OF | J15: TOTAL ANNUAL | K15: HOURS | L15: (Col. F x G) | N15: NO. OF | O15: ANNUAL | P15: RECORD- | Q15: COST | R15: TOTAL
A16: SECTION OF | B16: DESCRIPTION | G16: (If "none" | H16: RESPONDENTS | I16: RESPONSES | J16: RESPONSES | K16: PER | L16: (H) | N16: RECORD- | O16: HOURS PER | P16: KEEPING HOURS | Q16: PER | R16: COST
A17: REGS. | G17: so state) | I17: PER | J17: (Col. D x E) | K17: RESPONSE | N17: KEEPERS | O17: RECORD- | P17: (Col. I x J) | Q17: HOUR | R17: (Col. H x L)
I18: RESPONDENT | L18: EXEMPT | M18: NON-EXEMPT | O18: KEEPER
A19: (A) | B19: (B) | G19: (C) | H19: (D) | I19: (E) | J19: (F) | K19: (G) | N19: (I) | O19: (J) | P19: (K) | Q19: (L) | R19: (M) | V19: Agency Notes
A20: 765.403; 766.204 | B20: Notification of approval and borrower responsibilities | G20: 2025 (Farmer) | H20: 79 | I20: 1 | J20: =SUM(H20*I20) -> 79 | K20: 0.33 | M20: =SUM(J20*K20) -> 26 | Q20: $47.99 | R20: =SUM(M20*Q20) -> 1,251 | S20: 21 | T20: =M20-S20 -> 5 | V20: Respondents adjusted due to 5 year median of requests.
A21: 765.302 | B21: Agreement for disposition of security/release of proceeds | G21: 2040 (Farmer) | H21: 66,490 | I21: 1 | J21: =SUM(H21*I21) -> 66,490 | K21: 0.33 | M21: 21,942 | Q21: $47.99 | R21: 1,052,982 | S21: 21,676 | T21: =M21-S21 -> 266 | V21: Respondents adjusted due to increase in borrowers
A22: 765.302 | B22: Update of agreement for disposition/release of proceeds | G22: 2040 (Farmer) | H22: 4,433 | I22: 2 | J22: =SUM(H22*I22) -> 8,866 | K22: 0.17 | M22: 1,472 | Q22: $47.99 | R22: 70,630 | S22: 1,454 | T22: =M22-S22 -> 18 | V22: Respondents adjusted due to increase in borrowers
A23: 765.253; 765.351; 765.401 | B23: Application for partial release or consent | G23: 2061 (Farmer) | H23: 3,012 | I23: 1 | J23: =SUM(H23*I23) -> 3,012 | K23: 0.50 | M23: =SUM(J23*K23) -> 1,506 | Q23: $47.99 | R23: =SUM(M23*Q23) -> 72,273 | S23: 2,750 | U23: =M23-S23 -> -1,244 | V23: Input error from 2023 ICR. The supporting document estimated receiving 753 FSA-2061's annually, and accounting for all parites that execute promissory note, the estimate was 2,259 signatures. As a result, the total burden hours appear to have decreased. Though that is not the case.
A24: 765.205; 765.206 | B24: Application for subordination of security for commercial credit | G24: 2062 (Farmer) | H24: 8,728 | I24: 1 | J24: =SUM(H24*I24) -> 8,728 | K24: 0.50 | M24: =SUM(J24*K24) -> 4,364 | Q24: $47.99 | R24: =SUM(M24*Q24) -> 209,428 | S24: 1,091 | U24: 3,273 | V24: Input error from 2023 ICR. The supporting document estimated receiving 2,182 annually, and accounting for all parties that execute promissory note, the estimate was $8,728 signatures. As a result, the total burden hours increase appears to be exaggerated.
A25: 7 CFR 765.101(d) and (e) | B25: Borrower Prospectus Information | G25: 2418 (Business) | H25: =3663 -> 3,663 | I25: 1 | J25: =SUM(H25*I25) -> 3,663 | K25: 0.67 | M25: =SUM(J25*K25) -> 2,454 | Q25: $42.21 | R25: =SUM(M25*Q25) -> 103,592 | S25: =2412+301 -> 2713 | U25: -259 | V25: Previously separated by review and response. New form combines review and response.
A26: 7 CFR 765.102 | B26: Addendum to the Promissory Note or Assumption Agreement Converting to NP rates and terms | G26: 2423 (Farmer) | H26: 4,844 | I26: 1 | J26: =SUM(H26*I26) -> 4,844 | K26: 0.25 | M26: =SUM(J26*K26) -> 1,211 | Q26: $47.99 | R26: =SUM(M26*Q26) -> 58,116 | S26: 0 | T26: =M26-S26 -> 1,211 | V26: Respondents represent borrowers requesting non-program rates and terms as a result of failing to meet graduation requirements.
A27: 765.152 (b) (7) | B27: Cancelling undisbursed loan funds | G27: 2425 (Farmer) | H27: 500 | I27: 1 | J27: 500 | K27: 0.17 | M27: 83 | Q27: $47.99 | R27: 3,983 | S27: 83 | U27: 0 | V27: No change
A28: 765.302 (d) | B28: Temporary amendment-consent to payment of proceeds from sale | G28: 2450 (Farmer) | H28: 500 | I28: 1 | J28: 500 | K28: 0.17 | M28: 83 | Q28: $47.99 | R28: =SUM(M28*Q28) -> 3,983 | S28: 83 | U28: 0 | V28: No change
A29: 765.305 (b) | B29: Assignment, acceptance/release for wool and mohair/borrower | G29: 2465 (Farmer) | H29: 25 | I29: 1 | J29: 25 | K29: 0.17 | M29: 4 | Q29: $47.99 | R29: =SUM(M29*Q29) -> 199 | S29: 4 | U29: 0 | V29: No change
A30: 765.305 (b) | B30: Assignment, acceptance/release for wool and mohair/borrower | G30: 2465 (Business) | H30: 25 | I30: 1 | J30: 25 | K30: 0.17 | M30: =SUM(J30*K30) -> 4 | Q30: $42.21 | R30: =SUM(M30*Q30) -> 175 | S30: 4 | U30: 0 | V30: No change
A31: 765.205; 765.206 | B31: Subordination, Non-Disturbance, and Attornment Agreement | G31: 2471 (Farmer) | H31: 280 | I31: 1 | J31: 280 | K31: 0.33 | M31: 92 | Q31: $47.99 | R31: =SUM(M31*Q31) -> 4,434 | S31: 0 | T31: =M31-S31 -> 92 | V31: Respondents represent borrowers entering agreement with energy companies for suborinations.
A32: 765.205; 765.206 | B32: Subordination, Non-Disturbance, and Attornment Agreement | G32: 2471 (Business) | H32: 70 | I32: 1 | J32: 70 | K32: 0.33 | M32: 23 | Q32: $89.35 | R32: =SUM(M32*Q32) -> 2,064 | S32: 0 | T32: 23 | V32: Respndents represent energy company employee execuring the agreement with FSA borrower.
A33: 765.401 (b) | B33: Transfer of real estate security/borrower | G33: 2476 (Farmer) | H33: 259 | I33: 1 | J33: 259 | K33: 0.25 | M33: 65 | Q33: $47.99 | R33: 3,107 | S33: 64 | T33: 1 | V33: Respondents adjusted due to increase in borrowers
A34: 765.401 (b) | B34: Transfer of real estate security/transferee | G34: 2476 (Farmer) | H34: 259 | I34: 1 | J34: 259 | K34: 0.25 | M34: 65 | Q34: $47.99 | R34: 3,107 | S34: 64 | T34: 1 | V34: Respondents adjusted due to increase in borrowers
A35: 765.401 (a) (2) | B35: Assumption Agreement | G35: 2489 (Farmer) | H35: 78 | I35: 1 | J35: 78 | K35: 0.33 | M35: 26 | Q35: $47.99 | R35: =SUM(M35*Q35) -> 1,235 | S35: 20 | T35: 6 | V35: Respondents adjusted due to 5 year median of requests.
A36: 765.101 (a) | B36: Lenders’ loan underwriting standards | G36: Non-form (Business) | H36: 813 | I36: 1 | J36: 813 | K36: 0.33 | M36: 268 | Q36: $42.21 | R36: =SUM(M36*Q36) -> 11,325 | S36: 231 | T36: 37 | V36: Respondents adjusted due to increase in Guaranteed Lenders
A37: 765.101 | B37: Borrower documentation of inability to graduate | G37: Non-form (Farmer) | H37: 2,442 | I37: 1 | J37: 2,442 | K37: 0.25 | M37: 611 | Q37: $47.99 | R37: =SUM(M37*Q37) -> 29,298 | S37: 401 | T37: 210 | V37: Respondents adjusted due to increase in borrowers. Previous ICR input burden hours incorrectly.
A38: 765.101 | B38: Lender documentation of borrower inability to graduate | G38: Non-form (Business) | H38: 2,442 | I38: 1 | J38: 2,442 | K38: 0.17 | M38: 405 | Q38: $42.21 | R38: =SUM(M38*Q38) -> 17,111 | S38: 604 | T38: -199 | V38: Respondents adjusted due to increase in borrowers. Previous ICR input burden hours incorrectly.
A39: 765.155 (c) | B39: Borrower request for refund of overpayment | G39: Non-form (Farmer) | H39: 25 | I39: 1 | J39: 25 | K39: 0.17 | M39: 4 | Q39: $47.99 | R39: 199 | S39: 4 | U39: 0 | V39: No change
A40: 765.205 (c) | B40: Creditor consent to second subordination | G40: Non-form (Business) | H40: 241 | I40: 1 | J40: 241 | K40: 0.17 | M40: 40 | Q40: $42.21 | R40: =SUM(M40*Q40) -> 1,689 | S40: 238 | U40: -198 | V40: Previous ICR did not calculate burden hours correctly.
A41: 765.202 (c ) | B41: Assignment of insurance proceeds from 2nd subordination | G41: Non-form (Farmer) | H41: 241 | I41: 1 | J41: 241 | K41: 0.17 | M41: 40 | Q41: $47.99 | R41: 1,920 | S41: 40 | U41: 0 | V41: No change
A42: 765.206 (b) (2) | B42: Operating plan for agency to consent to junior lien | G42: Non-form (Farmer) | H42: 976 | I42: 1 | J42: 976 | K42: 0.17 | M42: =SUM(J42*K42) -> 162 | Q42: $47.99 | R42: 7,775 | S42: 160 | T42: =M42-S42 -> 2 | V42: Respondents adjusted due to increase in borrowers
A43: 765.206 (b) (4) | B43: Junior Lienhoolder Agreement | G43: Non-form (Business) | H43: 976 | I43: 1 | J43: =SUM(H43*I43) -> 976 | K43: 0.17 | M43: =SUM(J43*K43) -> 162 | Q43: $42.21 | R43: =SUM(M43*Q43) -> 6,839 | S43: 160 | T43: =M43-S43 -> 2 | V43: Respondents adjusted due to increase in borrowers
A44: 765.207 | B44: Borrower request for severance agreement | G44: Non-form (Farmer) | H44: 370 | I44: 1 | J44: 370 | K44: 0.17 | M44: 61 | Q44: $47.99 | R44: 2,948 | S44: 61 | U44: 0 | V44: No change
A45: 765.251, 765.252 | B45: Request to lease security – copy of lease | G45: Non-form (Farmer) | H45: 461 | I45: 1 | J45: 461 | K45: 0.33 | M45: 152 | Q45: $47.99 | R45: 7,301 | S45: 150 | T45: =M45-S45 -> 2 | V45: Respondents adjusted due to increase in borrowers
A46: 765.251, 765.253 | B46: Request to cease operating security – copy of lease | G46: Non-form (Farmer) | H46: 461 | I46: 1 | J46: 461 | K46: 0.50 | M46: 231 | Q46: $47.99 | R46: 11,062 | S46: 228 | T46: =M46-S46 -> 3 | V46: Respondents adjusted due to increase in borrowers
A47: 765.301, 765.303 | B47: Borrower request for lienholder consent to use proceeds | G47: Non-form (Farmer) | H47: 516 | I47: 1 | J47: 516 | K47: 0.17 | M47: 86 | Q47: $47.99 | R47: 4,111 | S47: 84 | T47: =M47-S47 -> 2 | V47: Respondents adjusted due to increase in borrowers
A48: 765.301, 765.303 | B48: Lienholder consent to use proceeds | G48: Non-form (Business) | H48: 774 | I48: 1 | J48: 774 | K48: 0.25 | M48: 194 | Q48: $42.21 | R48: =SUM(M48*Q48) -> 8,168 | S48: 191 | T48: =M48-S48 -> 3 | V48: Respondents adjusted due to increase in borrowers
A49: 765.351 (b) (2) | B49: Borrower requested use proceeds from timber, gravel, etc. | G49: Non-form (Farmer) | H49: 129 | I49: 1 | J49: 129 | K49: 0.17 | M49: 21 | Q49: $47.99 | R49: 1,028 | S49: 21 | U49: 0 | V49: No change
A50: 765.351 (b) (2) | B50: Lienholder consent to use timber, gravel, etc., proceeds | G50: Non-form (Business) | H50: 195 | I50: 1 | J50: 195 | K50: 0.25 | M50: 49 | Q50: $42.21 | R50: =SUM(M50*Q50) -> 2,058 | S50: 48 | T50: =M50-S50 -> 1 | V50: Respondents adjusted due to increase in borrowers
A51: 765.351 (b) (2) | B51: Borrower assignment of proceeds from timber, etc. to agency | G51: Non-form (Farmer) | H51: 129 | I51: 1 | J51: 129 | K51: 0.25 | M51: 32 | Q51: $47.99 | R51: 1,548 | S51: 32 | U51: 0 | V51: No change
A52: 765.351 (d) (2) | B52: Assignment of Deed of Trust As Collateral-CA Form Only | G52: 2400-6 CA (Farmer) | H52: 13 | I52: 1 | J52: 13 | K52: 0.25 | M52: 3 | Q52: $47.99 | R52: 156 | S52: 3 | U52: 0 | V52: No change
A53: 765.351 (d) | B53: Sale of real estate – copy of contract for deed | G53: Non-form (Farmer) | H53: 13 | I53: 1 | J53: 13 | K53: 0.17 | M53: 2 | Q53: $47.99 | R53: 104 | S53: 2 | U53: 0 | V53: No change
A54: 765.351 (e) | B54: Borrower request to exchange real estate property | G54: Non-form (Farmer) | H54: 13 | I54: 1 | J54: 13 | K54: 0.17 | M54: 2 | Q54: $47.99 | R54: 104 | S54: 2 | U54: 0 | V54: No change
A55: 765.406 (b) | B55: Request of obligated party to withdraw | G55: Non-form (Farmer) | H55: 660 | I55: 1 | J55: 660 | K55: 0.50 | M55: =SUM(J55*K55) -> 330 | Q55: $47.99 | R55: 15,837 | S55: 326 | T55: =M55-S55 -> 4 | V55: Respondents adjusted due to increase in borrowers
B56: SUBTOTAL | H56: =SUM(H20:H55) -> 105,135 | J56: =SUM(J20:J55) -> 109,568 | K56: =SUM(K20:K55) -> 10 | M56: =SUM(M20:M55) -> 36,275 | P56: =SUM(P20:P55) -> 0.00 | R56: =SUM(R20:R55) -> 1,721,137 | S56: =SUM(S20:S55) -> 33,013 | T56: =SUM(T20:T55) -> 1,688 | U56: =SUM(U20:U55) -> 1,574
B57: TOTAL OF ALL PAGES | J57: =SUM(J56) -> 109,568 | M57: =SUM(M56) -> 36,275 | P57: =SUM(P56) -> 0.00 | R57: =SUM(R56) -> 1,721,137
A58: TOTAL - COLUMNS "F" AND "I" = OMB 83-I, 13b; COLUMNS "H" AND "K" = OMB 83-I, 13c | J58: =SUM(J57+N57) -> 109,568 | M58: =SUM(M57+P57) -> 36,275
